bitfinex-derivatives/quotes_ETHF0:USTF0_20240907
["timestamp","ask_amount","ask_price","bid_price","bid_amount"]
[1725724608060,0.43414,2303.5,2303.1,3.44984125]
[1725724608270,0.43414,2303.5,2303.3,3.169]
[1725724608452,0.43416,2303.4,2303.3,3.169]
[1725724608658,0.43419,2303.3,2303.0,3.169]
[1725724608870,0.43421,2303.1,2303.0,1.551]
[1725724609070,1.9257,2303.2,2303.0,1.551]
[1725724609464,1.9257,2303.2,2302.7,4.63128]
[1725724609658,4.6993,2303.2,2302.8,1.551]
[1725724609966,0.43421,2303.1,2302.8,1.551]
[1725724611355,0.43424,2303.0,2302.8,1.551]
[1725724611862,0.43423,2303.0,2302.8,1.551]
[1725724613355,0.43423,2303.1,2302.8,1.551]
[1725724613760,0.43421,2303.1,2302.8,1.551]
[1725724614066,0.43422,2303.1,2302.8,1.551]
[1725724614266,4.6993,2303.2,2302.8,1.551]
[1725724614869,0.43423,2303.0,2302.8,1.551]
[1725724615568,0.43422,2303.1,2302.8,1.551]
[1725724615770,5.1335,2303.2,2302.8,1.551]
[1725724616757,5.1335,2303.2,2302.8,1.98527]
[1725724617262,4.6993,2303.2,2302.8,1.98527]
[1725724618060,5.1335,2303.2,2302.8,1.98527]
[1725724618975,3.0,2303.6,2302.8,5.8934]
[1725724619269,3.64191,2303.7,2303.3,0.43417]
[1725724619468,3.2078,2303.7,2303.5,0.43413]
[1725724619668,3.2078,2303.7,2303.4,3.61964]
[1725724619866,3.64191,2303.7,2303.4,3.1855]
[1725724620066,3.2078,2303.7,2303.4,3.1855]
[1725724620267,0.43413,2303.6,2303.4,3.1855]
[1725724621262,0.43412,2303.6,2303.4,3.1855]
[1725724621574,0.43415,2303.5,2303.0,0.43422]
[1725724621769,0.43416,2303.4,2303.1,1.601]
[1725724621970,0.43416,2303.4,2303.1,1.81650937]
[1725724622168,0.43415,2303.5,2303.1,2.25071937]
[1725724622472,0.43415,2303.5,2303.1,1.81650937]
[1725724622670,0.43416,2303.4,2303.1,1.601]
[1725724622876,1.95776,2303.4,2303.1,1.601]
[1725724623575,1.5236,2303.4,2303.1,1.601]
[1725724624275,1.5236,2303.4,2303.1,2.03521]
[1725724625172,1.5236,2303.4,2303.1,1.601]
[1725724625372,1.95776,2303.4,2303.1,1.601]
[1725724625775,1.5236,2303.4,2303.1,1.601]
[1725724626377,1.95776,2303.4,2303.1,1.601]
[1725724627881,0.43418,2303.3,2303.1,1.601]
[1725724628068,1.95776,2303.4,2303.1,1.601]
[1725724630172,0.43418,2303.3,2303.1,1.601]
[1725724630367,7.7314,2303.4,2302.8,4.7502]
[1725724630574,0.43423,2303.1,2302.8,6.2973]
[1725724630782,1.6178,2303.0,2302.8,6.2973]
[1725724631275,2.05203,2303.0,2302.8,6.2973]
[1725724631682,0.43425,2302.9,2302.7,1.6129]
[1725724632079,5.25985,2303.0,2302.7,1.6129]
[1725724632774,3.2078,2303.0,2302.7,7.8207]
[1725724632980,3.64198,2303.3,2303.0,0.43423]
[1725724633184,3.64198,2303.3,2303.1,3.0133]
[1725724634476,0.4342,2303.2,2303.1,3.0133]
[1725724635883,0.4342,2303.2,2302.9,0.43425]
[1725724636074,3.64199,2303.3,2302.9,0.43425]
[1725724636379,3.64199,2303.3,2303.0,0.43423]
[1725724637276,3.64199,2303.3,2302.9,0.43424]
[1725724637585,3.64199,2303.3,2303.0,0.43423]
[1725724637586,0.43418,2303.3,2303.0,0.43423]
[1725724637882,0.43418,2303.3,2302.9,0.43424]
[1725724638276,0.43418,2303.3,2303.0,0.43423]
[1725724638484,1.588,2303.4,2302.9,0.21706833]
[1725724638673,2.02217,2303.4,2303.0,0.43422]
[1725724638881,2.02217,2303.4,2303.1,0.21242028]
[1725724639186,2.02217,2303.4,2303.2,1.5456]
[1725724639377,2.02217,2303.4,2303.2,3.0659]
[1725724641283,1.13354974,2304.1,2303.3,10.5494]
[1725724641485,4.19474974,2304.3,2303.6,3.2078]
[1725724641783,3.0612,2304.3,2303.9,0.43406]
[1725724641984,3.0612,2304.3,2303.8,0.43407]
[1725724642188,3.0612,2304.3,2303.8,1.4739]
[1725724642379,3.0612,2304.3,2303.8,1.90797]
[1725724643679,3.49519,2304.3,2303.8,1.90797]
[1725724644389,1.55,2304.3,2303.9,0.43405]
[1725724648391,1.98399,2304.3,2303.8,1.90797]
[1725724648689,5.19179,2304.3,2303.8,1.90797]
[1725724648888,4.7578,2304.3,2303.8,1.90797]
[1725724649096,5.1918,2304.3,2303.8,1.90797]
[1725724650593,4.7578,2304.3,2303.9,0.43406]
[1725724651189,3.2078,2304.3,2304.0,0.43404]
[1725724651692,3.2078,2304.3,2304.1,1.5434]
[1725724651895,3.2078,2304.3,2304.2,1.5682]
[1725724653391,1.5638,2304.7,2304.2,1.5682]
[1725724653392,1.5638,2304.7,2304.5,0.43394]
[1725724653597,1.487,2305.0,2304.6,1.5214]
[1725724653799,3.48346,2305.0,2304.6,1.5214]
[1725724655995,0.43388,2304.9,2304.6,1.5214]
[1725724656191,3.48347,2305.0,2304.6,1.5214]
[1725724657599,0.43388,2304.9,2304.6,1.5214]
[1725724658494,0.4339,2304.8,2304.6,1.5214]
[1725724658695,4.29257,2304.8,2304.2,1.78578951]
[1725724658887,0.43394,2304.6,2304.3,0.43398]
[1725724659201,0.43393,2304.6,2304.2,2.21978951]
[1725724659386,2.05813,2304.6,2304.2,2.21978951]
[1725724660491,0.43395,2304.5,2304.2,1.78578951]
[1725724662503,1.6242,2304.6,2304.2,1.78578951]
[1725724662504,2.05814,2304.6,2304.2,1.78578951]
[1725724662798,2.05814,2304.6,2304.2,2.21979951]
[1725724664494,2.05814,2304.6,2304.2,1.78578951]
[1725724666693,3.2078,2304.5,2303.8,4.197]
[1725724666895,0.43404,2304.1,2303.8,1.6111]
[1725724668097,1.5261,2304.2,2303.7,0.22084107]
[1725724668098,5.81895,2304.2,2303.7,0.22084107]
[1725724668401,0.43408,2303.9,2303.6,0.21717233]
[1725724668993,3.56336,2304.0,2303.6,0.43412]
[1725724669291,2.01555,2304.0,2303.7,0.21432851]
[1725724669490,0.43407,2303.9,2303.7,0.21432851]
[1725724669687,2.01556,2304.0,2303.7,0.21432851]
[1725724670093,0.43406,2303.9,2303.7,0.21432851]
[1725724670493,1.5815,2304.0,2303.4,6.74035]
[1725724670692,1.4804,2303.8,2303.4,6.95773941]
[1725724670898,1.91449,2303.8,2303.4,6.95773941]
[1725724671201,1.91449,2303.8,2303.5,0.43414]
[1725724671902,1.91449,2303.8,2303.4,6.95773941]
[1725724672595,0.4341,2303.7,2303.4,6.52358941]
[1725724672800,0.43414,2303.5,2303.4,1.4911]
[1725724673497,0.43416,2303.4,2303.2,1.69829243]
[1725724673798,2.02036,2303.4,2303.2,1.4773]
[1725724675895,1.5862,2303.4,2303.2,1.4773]
[1725724677205,2.02036,2303.4,2303.2,1.4773]
[1725724678004,1.5862,2303.4,2303.2,1.4773]
[1725724678698,2.02036,2303.4,2303.2,1.4773]
[1725724680004,2.02036,2303.4,2303.1,3.42295227]
[1725724680604,0.4342,2303.2,2303.1,3.42295227]
[1725724680810,0.4342,2303.2,2303.1,0.21515227]
[1725724681002,1.94818,2303.3,2303.1,0.21515227]
[1725724682307,0.4342,2303.2,2303.1,0.21515227]
[1725724683103,1.94819,2303.3,2303.1,0.21515227]
[1725724684307,1.514,2303.3,2303.0,3.1677]
[1725724684505,0.43421,2303.2,2303.0,3.1677]
[1725724685299,0.43421,2303.1,2303.0,3.1677]
[1725724685507,0.43421,2303.1,2303.0,1.6213]
[1725724685914,0.43423,2303.0,2302.8,1.6252]
[1725724686115,0.4342,2303.2,2302.8,3.2119]
[1725724686323,0.43423,2303.0,2302.8,3.2119]
[1725724686613,0.43422,2303.1,2302.8,3.64617]
[1725724687016,0.43422,2303.1,2302.8,3.2119]
[1725724688213,0.4342,2303.2,2302.8,3.2119]
[1725724688807,0.4342,2303.2,2302.8,3.64617]
[1725724689319,0.4342,2303.2,2302.8,3.2119]
[1725724691016,0.43421,2303.1,2302.8,3.2119]
[1725724691204,0.43421,2303.2,2302.8,3.2119]
[1725724692017,0.43421,2303.2,2302.8,3.64617]
[1725724692621,2.02036,2303.4,2303.0,0.43423]
[1725724692924,1.5862,2303.4,2303.1,1.5559]
[1725724693220,1.5862,2303.4,2303.2,1.5984]
[1725724693419,1.5862,2303.4,2303.2,3.1109]
[1725724693713,0.43418,2303.3,2303.2,3.1109]
[1725724693909,0.43418,2303.3,2302.9,0.43424]
[1725724694110,0.43418,2303.3,2303.0,3.1109]
[1725724694720,0.43418,2303.3,2303.0,3.54513]
[1725724694909,2.02037,2303.4,2303.0,3.54513]
[1725724697219,0.43418,2303.3,2303.0,3.54513]
[1725724697424,0.43418,2303.3,2303.0,3.1109]
[1725724698820,0.4342,2303.2,2303.0,3.1109]
[1725724699620,0.4342,2303.2,2303.0,3.54513]
[1725724700015,0.4342,2303.2,2303.0,3.1109]
[1725724701424,0.43421,2303.1,2303.0,3.1109]
[1725724701623,0.43421,2303.1,2303.0,1.5984]
[1725724703626,0.43425,2302.9,2302.8,3.1049]
[1725724709730,0.43425,2303.0,2302.8,3.1049]
[1725724710127,0.43436,2302.3,2302.2,1.13018647]
[1725724710327,0.4345,2301.6,2301.5,1.1283]
[1725724710632,9.3699367,2302.2,2301.5,1.1283]
[1725724710821,0.43444,2301.9,2301.5,1.56281]
[1725724711231,0.43443,2302.0,2301.5,1.1283]
[1725724711429,0.43443,2302.0,2301.5,1.56281]
[1725724711830,0.43443,2302.0,2301.5,4.77061]
[1725724715333,0.43445,2301.9,2301.5,4.3361]
[1725724715933,8.2358,2302.2,2301.5,4.77062]
[1725724716234,0.43445,2301.9,2301.5,4.77062]
[1725724717035,0.43445,2301.9,2301.5,4.3361]
[1725724718237,0.43446,2301.8,2301.5,4.3361]
[1725724719040,0.43445,2301.9,2301.5,4.3361]
[1725724719641,0.43445,2301.9,2301.5,1.56281]
[1725724720538,0.43445,2301.9,2301.5,1.1283]
[1725724720743,0.43446,2301.8,2301.5,1.1283]
[1725724721841,0.43446,2301.9,2301.5,1.1283]
[1725724722755,0.43441,2302.1,2301.5,4.3361]
[1725724723047,7.0902,2302.2,2301.7,0.43448]
[1725724723250,0.43441,2302.1,2301.8,1.9215]
[1725724723447,7.0902,2302.2,2301.9,1.2001]
[1725724723746,0.43441,2302.1,2301.9,1.2001]
[1725724724844,7.0902,2302.2,2301.9,1.2001]
[1725724725243,3.43442,2302.0,2301.9,1.2001]
[1725724725449,8.86448,2302.0,2301.9,1.2001]
[1725724726550,7.77842,2302.0,2301.9,1.2001]
[1725724728848,8.86448,2302.0,2301.9,1.2001]
[1725724733848,4.52048,2302.0,2301.9,1.2001]
[1725724734055,8.86448,2302.0,2301.9,1.2001]
[1725724734258,4.52048,2302.0,2301.9,1.2001]
[1725724734555,8.86448,2302.0,2301.9,1.2001]
[1725724735961,7.11448,2302.0,2301.9,1.2001]
[1725724737760,2.77048,2302.0,2301.9,1.2001]
[1725724738161,0.43442,2302.0,2301.9,1.2001]
[1725724738357,4.0902,2302.2,2301.9,1.63454]
[1725724738562,1.68442,2302.0,2301.9,1.2001]
[1725724739963,3.43442,2302.0,2301.9,1.2001]
[1725724740165,4.52048,2302.0,2301.9,1.2001]
[1725724741570,3.43442,2302.0,2301.9,1.2001]
[1725724743263,7.77842,2302.0,2301.9,1.2001]
[1725724744767,3.0,2302.0,2301.9,1.2001]
[1725724744967,0.43441,2302.1,2301.9,1.2001]
[1725724745265,0.43442,2302.0,2301.9,1.2001]
[1725724745469,0.43441,2302.1,2301.9,1.2001]
[1725724747169,7.5246,2302.2,2301.9,1.2001]
[1725724747368,6.2078,2302.2,2301.9,1.63453]
[1725724748572,6.64218,2302.2,2301.9,1.63453]
[1725724749867,3.43442,2302.0,2301.9,1.2001]
[1725724752368,4.5685567,2302.0,2301.9,1.2001]
[1725724752767,5.6546167,2302.0,2301.9,1.2001]
[1725724752975,9.9986167,2302.0,2301.9,1.2001]
[1725724753272,10.56568505,2302.0,2301.9,1.2001]
[1725724753476,8.86448,2302.0,2301.9,1.2001]
[1725724753677,10.57042895,2302.0,2301.9,1.2001]
[1725724754371,11.13710287,2302.0,2301.9,1.2001]
[1725724755175,11.13710287,2302.0,2301.9,1.24237429]
[1725724755376,11.70525859,2302.0,2301.9,1.24237429]
[1725724755564,7.36125859,2302.0,2301.9,1.24237429]
[1725724756569,6.27519859,2302.0,2301.9,1.24237429]
[1725724757269,10.61919859,2302.0,2301.9,1.24237429]
[1725724757976,6.27519859,2302.0,2301.9,1.24237429]
[1725724759281,7.36125859,2302.0,2301.9,1.24237429]
[1725724759984,5.61125859,2302.0,2301.9,1.24237429]
[1725724761466,4.52519859,2302.0,2301.9,1.24237429]
[1725724762378,3.27519859,2302.1,2301.9,1.24237429]
[1725724762574,2.27973428,2302.0,2301.9,1.24237429]
[1725724762781,3.52970528,2302.0,2301.9,1.24237429]
[1725724764072,3.52973355,2302.0,2301.9,1.24237429]
[1725724766574,3.96415355,2302.0,2301.9,1.24237429]
[1725724766973,1.68442,2302.0,2301.9,1.24237429]
[1725724767374,3.96415111,2302.0,2301.9,1.24237429]
[1725724768583,3.52973111,2302.0,2301.9,2.37256076]
[1725724770276,3.96415111,2302.0,2301.9,2.37256076]
[1725724770675,4.92019859,2302.0,2301.9,1.24237429]
[1725724771680,4.09077859,2302.0,2301.9,1.24237429]
[1725724771882,1.25,2302.0,2301.9,2.37256076]
[1725724772078,3.52997102,2302.0,2301.9,2.37256076]
[1725724775686,3.52997102,2302.0,2301.9,2.73826076]
[1725724780188,3.96439102,2302.0,2301.9,2.73826076]
[1725724782194,2.77048,2302.0,2301.9,1.24237429]
[1725724782381,3.16058,2302.0,2301.9,1.24237429]
[1725724784484,6.01043786,2302.0,2301.9,1.24237429]
[1725724785187,4.92437786,2302.0,2301.9,1.24237429]
[1725724785990,6.01043786,2302.0,2301.9,1.24237429]
[1725724789292,3.67437786,2302.0,2301.9,1.24237429]
[1725724789589,4.92437786,2302.0,2301.9,1.24237429]
[1725724789993,3.67437786,2302.0,2301.9,1.24237429]
[1725724790188,6.01043786,2302.0,2301.9,1.24237429]
[1725724790587,7.07016,2302.0,2301.7,1.13018647]
[1725724790793,0.4345,2301.6,2301.5,1.85118647]
[1725724790990,1.6845,2301.6,2301.5,1.85118647]
[1725724793507,1.6845,2301.6,2301.5,0.721]
[1725724793705,1.6845,2301.6,2301.5,1.1158]
[1725724794003,2.95931175,2301.6,2301.5,2.24598647]
[1725724797110,2.95931175,2301.6,2301.5,1.1158]
[1725724799311,3.39381175,2301.6,2301.5,1.1158]
[1725724800306,0.4345,2301.6,2301.5,1.1158]
[1725724800509,2.1432833,2301.6,2301.5,1.1158]
[1725724801149,2.5266833,2301.6,2301.5,1.1158]
[1725724801370,2.1432833,2301.6,2301.5,1.1158]
[1725724801715,0.43452,2301.5,2301.4,1.1366404]
[1725724801916,1.05902,2301.5,2301.4,1.1366404]
[1725724802219,0.79612,2301.5,2301.4,1.1366404]
[1725724803611,0.43452,2301.5,2301.4,1.5191404]
[1725724803820,2.27837773,2301.7,2301.4,1.5191404]
[1725724804012,1.08897773,2301.7,2301.5,3.5829]
[1725724804211,2.84797216,2301.9,2301.5,3.5829]
[1725724804410,1.65877216,2301.9,2301.5,9.5829]
[1725724804709,0.03747216,2301.9,2301.8,0.43446]
[1725724804916,3.98716103,2302.3,2302.0,0.43442]
[1725724805215,0.1856666,2302.1,2301.9,0.43443]
[1725724805411,0.1856666,2302.1,2301.8,3.2078]
[1725724805412,0.1856666,2302.1,2301.8,0.43445]
[1725724805611,3.98716103,2302.3,2302.2,0.43438]
[1725724805820,3.98716103,2302.3,2302.2,0.22108717]
[1725724806014,3.98716103,2302.3,2302.1,0.43439]
[1725724806215,3.98716103,2302.3,2301.8,3.44134317]
[1725724806411,3.98716103,2302.3,2301.8,0.23354317]
[1725724806722,3.2078,2302.5,2302.1,1.70266955]
[1725724806924,3.2078,2302.5,2302.1,2.13706955]
[1725724807123,0.43432,2302.6,2302.1,1.70266955]
[1725724807323,3.64212,2302.6,2302.1,1.70266955]
[1725724807524,3.64212,2302.6,2302.1,2.13706955]
[1725724808028,3.64212,2302.6,2302.2,1.25]
[1725724808325,3.64212,2302.6,2302.3,0.22119625]
[1725724809220,0.43432,2302.6,2302.3,0.22119625]
[1725724809421,3.2078,2302.7,2302.3,0.65555625]
[1725724809619,3.2078,2302.7,2302.3,0.22119625]
[1725724809921,3.2078,2302.7,2302.3,0.65555625]
[1725724811127,3.2078,2302.7,2302.3,0.22119625]
[1725724811715,3.2078,2302.7,2302.4,1.25]
[1725724811925,3.2078,2303.3,2302.6,1.25]
[1725724812122,3.2078,2303.0,2302.5,0.2789]
[1725724812429,0.43425,2302.9,2302.5,1.41216174]
[1725724812623,0.43425,2302.9,2302.4,1.35176392]
[1725724812822,1.6433,2302.9,2302.4,1.13326174]
[1725724813019,1.6433,2302.9,2302.3,5.33026174]
[1725724813020,0.43427,2302.8,2302.3,5.33026174]
[1725724813225,0.82756,2302.9,2302.4,1.25]
[1725724813429,0.82756,2302.9,2302.4,1.46261433]
[1725724814130,0.43426,2302.9,2302.4,1.46261433]
[1725724814426,0.3776,2302.8,2302.4,1.46261433]
[1725724815121,0.81187,2302.8,2302.4,1.46261433]
[1725724815827,0.43429,2302.7,2302.4,0.21261433]
[1725724816031,0.3776,2302.8,2302.1,3.2078]
[1725724816326,3.2078,2302.3,2301.9,4.197]
[1725724816528,0.7465,2302.2,2301.8,1.68444]
[1725724817332,3.2078,2302.0,2301.7,1.80071492]
[1725724817521,3.2078,2302.0,2301.7,1.91865462]
[1725724817932,3.2078,2302.0,2301.7,0.66865462]
[1725724818132,3.2078,2302.0,2301.8,0.43445]
[1725724818327,0.7465,2302.2,2301.9,4.344]
[1725724818636,0.7465,2302.2,2301.9,0.43444]
[1725724818827,0.3776,2302.2,2301.9,0.43444]
[1725724819133,0.3776,2302.2,2301.8,3.43445]
[1725724819640,0.3776,2302.2,2301.8,3.0]
[1725724819835,0.81199,2302.2,2301.8,3.0]
[1725724820135,0.81199,2302.2,2301.5,5.3290603]
[1725724820136,0.43445,2301.9,2301.5,5.3290603]
[1725724820330,3.2078,2301.7,2301.5,4.197]
[1725724820534,3.2078,2301.7,2301.4,0.43453]
[1725724820832,1.11,2301.8,2301.4,0.43453]
[1725724821139,4.3178,2301.8,2301.5,0.43451]
[1725724821326,0.7445,2301.8,2301.5,0.43451]
[1725724821632,0.3869,2301.8,2301.5,0.4345]
[1725724823434,3.2078,2302.1,2302.0,0.43442]
[1725724823845,3.2078,2302.1,2302.0,10.77842]
[1725724824133,0.3714,2302.2,2302.1,0.4344]
[1725724824328,0.7522,2302.4,2302.1,0.4344]
[1725724825131,0.7522,2302.4,2302.0,0.43441]
[1725724825332,0.7522,2302.4,2302.1,0.4344]
[1725724825638,3.2078,2302.7,2302.2,3.43437]
[1725724825838,3.5792,2302.7,2302.2,3.65092621]
[1725724826926,3.5792,2302.7,2302.2,3.21655621]
[1725724827329,3.5792,2302.7,2302.2,3.65093621]
[1725724827530,3.5792,2302.7,2302.2,3.21655621]
[1725724828537,0.43431,2302.6,2302.2,0.21655621]
[1725724828729,3.5792,2302.7,2302.0,3.23937181]
[1725724828934,3.2078,2302.4,2302.0,3.23937181]
[1725724829131,0.7541,2302.3,2302.0,3.23937181]
[1725724829644,0.384,2302.2,2302.0,3.23937181]
[1725724832740,0.384,2302.2,2302.0,3.0]
[1725724832932,3.2078,2302.1,2301.7,10.37544768]
[1725724833241,3.64221,2302.1,2301.7,10.37544768]
[1725724834433,3.2078,2302.1,2301.7,10.37544768]
[1725724835647,3.64221,2302.1,2301.7,10.37544768]
[1725724835833,3.2078,2302.1,2301.7,10.37544768]
[1725724837146,3.64221,2302.1,2301.7,3.0]
[1725724837443,0.43443,2302.0,2301.5,3.0]
[1725724837641,0.3897,2301.9,2301.5,3.23794015]
[1725724837834,0.7542,2301.9,2301.5,3.23794015]
[1725724838230,1.18864,2301.9,2301.5,3.23794015]
[1725724838443,1.18865,2301.9,2301.5,3.0]
[1725724839143,3.2078,2301.8,2301.5,3.0]
[1725724839343,0.3815,2301.7,2301.5,3.0]
[1725724841344,3.2078,2301.8,2301.5,7.77931]
[1725724841651,3.2078,2301.8,2301.5,3.43451]
[1725724842448,0.7542,2301.9,2301.7,3.0]
[1725724842642,0.7542,2301.9,2301.7,7.3448]
[1725724842957,3.64217,2302.3,2301.8,4.77926]
[1725724843248,3.64217,2302.3,2301.7,3.0]
[1725724843249,0.3717,2302.2,2301.7,3.43447]
[1725724843641,0.3717,2302.2,2301.7,3.0]
[1725724843850,0.3717,2302.2,2301.8,0.43445]
[1725724844049,0.3717,2302.2,2301.9,0.43443]
[1725724844544,0.3717,2302.2,2301.7,3.0]
[1725724844743,0.3717,2302.2,2301.8,0.43445]
[1725724846146,0.3717,2302.2,2301.7,3.66875076]
[1725724846344,0.3717,2302.2,2301.7,4.80081106]
[1725724846750,0.3717,2302.2,2301.7,4.36634106]
[1725724846947,0.3717,2302.2,2301.8,0.43446]
[1725724847146,0.3717,2302.2,2302.1,0.4344]
[1725724847346,2.4502729,2302.4,2302.1,0.4344]
[1725724847347,0.3868,2302.4,2302.1,0.4344]
[1725724847544,0.3868,2302.4,2302.2,3.0]
[1725724847851,0.3868,2302.4,2302.2,3.21746122]
[1725724849147,0.3868,2302.4,2302.2,4.78389152]
[1725724850357,0.3688,2302.5,2302.3,4.3432]
[1725724850547,0.3688,2302.5,2302.2,3.65183122]
[1725724850743,0.3688,2302.5,2302.3,0.43436]
[1725724851151,0.3688,2302.5,2302.2,4.78389152]
[1725724853653,0.3688,2302.5,2302.2,3.65183122]
[1725724853843,0.3688,2302.5,2302.2,4.78389152]
[1725724854156,0.3688,2302.5,2302.2,3.65183122]
[1725724854353,0.3688,2302.5,2302.2,4.78389152]
[1725724854552,0.3688,2302.5,2302.3,0.43436]
[1725724854854,0.3688,2302.5,2302.2,3.88793982]
[1725724855251,0.3688,2302.5,2302.3,0.43436]
[1725724855648,3.9459,2302.7,2302.2,4.58563012]
[1725724855949,3.9459,2302.7,2302.3,1.5664103]
[1725724857258,3.9459,2302.7,2302.3,1.1320603]
[1725724857458,3.9459,2302.7,2302.2,5.02001012]
[1725724858055,3.9459,2302.7,2302.3,0.43436]
[1725724858256,3.9459,2302.7,2302.3,1.5664203]
[1725724858448,3.9459,2302.7,2302.3,1.1320603]
[1725724859155,3.9459,2302.7,2302.3,1.5664103]
[1725724860054,3.9459,2302.7,2302.3,1.1320603]
[1725724860247,3.64215,2302.4,2302.2,1.58563012]
[1725724860452,0.7782,2302.3,2301.8,1.1320603]
[1725724860648,4.00409,2302.2,2301.7,5.5684391]
[1725724860952,0.43443,2302.0,2301.6,4.1320603]
[1725724861150,0.43443,2302.0,2301.6,3.43449]
[1725724861459,3.2078,2301.9,2301.6,3.43449]
[1725724861658,0.3863,2301.8,2301.6,3.43449]
[1725724861853,0.3619,2301.7,2301.6,3.43449]
[1725724862851,4.9099729,2302.2,2302.0,0.43441]
[1725724863051,4.9099729,2302.2,2301.6,14.4768603]
[1725724863052,3.9655,2302.2,2301.9,3.43443]
[1725724863461,3.9655,2302.2,2301.9,3.0]
[1725724863763,4.3999,2302.2,2301.8,0.43446]
[1725724864256,0.3895,2302.1,2301.8,0.43446]
[1725724864662,0.3895,2302.1,2301.9,0.43444]
[1725724865264,0.3895,2302.1,2301.9,3.43444]
[1725724865464,0.3895,2302.1,2301.9,3.0]
[1725724865864,0.3895,2302.1,2301.9,3.43443]
[1725724866065,0.3895,2302.1,2302.0,0.43442]
[1725724868066,0.3895,2302.1,2301.9,3.0]
[1725724868256,0.3895,2302.1,2301.7,1.1320603]
[1725724868461,0.3895,2302.1,2301.8,0.43445]
[1725724870459,0.3895,2302.1,2301.7,1.80514935]
[1725724870861,0.3895,2302.1,2301.8,0.43446]
[1725724871168,0.3895,2302.1,2301.9,0.43444]
[1725724872274,0.3895,2302.1,2302.0,0.43442]
[1725724872665,0.3895,2302.1,2302.0,4.77842]
[1725724874066,0.3895,2302.1,2302.0,4.344]
[1725724874266,0.3895,2302.1,2301.9,3.43443]
[1725724874676,0.3895,2302.1,2301.7,1.37068935]
[1725724874976,0.3895,2302.1,2301.8,0.43446]
[1725724875868,0.3895,2302.1,2301.9,3.0]
[1725724876472,0.3895,2302.1,2302.0,0.43442]
[1725724876969,0.3895,2302.1,2301.9,3.0]
[1725724877176,0.3895,2302.1,2301.9,3.43443]
[1725724877676,0.3895,2302.1,2301.9,3.0]
[1725724878069,0.8239,2302.1,2301.9,3.0]
[1725724878267,0.8239,2302.1,2301.7,1.5665303]
[1725724879065,3.2078,2301.9,2301.6,4.5665503]
[1725724879265,0.3915,2301.8,2301.6,4.5665503]
[1725724879473,0.3755,2301.7,2301.6,4.5665503]
[1725724879874,0.3755,2301.7,2301.6,8.9113503]
[1725724883166,0.3755,2301.7,2301.6,4.5665503]
[1725724883566,4.7203,2301.7,2301.6,1.1320603]
[1725724883773,12.98881259,2301.7,2301.0,5.54432253]
[1725724883971,3.2078,2301.4,2301.1,3.0]
[1725724884174,0.3653,2301.3,2301.1,3.43459]
[1725724884479,0.3653,2301.3,2301.1,3.0]
[1725724884673,0.3653,2301.3,2301.1,3.43459]
[1725724884874,0.3653,2301.3,2301.2,0.43457]
[1725724885179,0.3653,2301.3,2301.1,3.0]
[1725724885575,0.3653,2301.3,2301.1,3.43458]
[1725724885776,0.3653,2301.3,2301.2,0.43457]
[1725724885976,0.3653,2301.3,2301.2,4.78017]
[1725724886178,3.2078,2301.7,2301.2,10.3456]
[1725724886378,3.2078,2301.7,2301.6,3.4345]
[1725724886379,3.5783,2301.7,2301.6,3.4345]
[1725724886578,3.5783,2301.7,2301.4,3.43452]
[1725724886784,3.5783,2301.7,2301.4,3.0]
[1725724886979,3.5783,2301.7,2301.4,3.43452]
[1725724887383,0.362,2301.6,2301.4,3.43452]
[1725724887982,0.362,2301.6,2301.4,3.0]
[1725724888179,0.362,2301.6,2301.4,3.43452]
[1725724888779,0.362,2301.6,2301.5,0.43452]
[1725724888983,0.362,2301.6,2301.4,3.43453]
[1725724890285,0.362,2301.6,2301.4,3.67674396]
[1725724890589,0.7329,2301.6,2301.4,3.67674396]
[1725724894287,0.7329,2301.6,2301.5,0.43452]
[1725724894495,0.7329,2301.6,2301.4,3.24221396]
[1725724894496,0.7329,2301.6,2301.4,3.67673396]
[1725724896093,0.7329,2301.6,2301.2,3.0]
[1725724896293,0.43452,2301.5,2301.2,3.0]
[1725724896492,0.43456,2301.3,2301.0,3.44692567]
[1725724896683,1.1269,2301.2,2301.0,3.44692567]
[1725724898000,1.1269,2301.2,2301.0,3.88153567]
[1725724901698,1.1269,2301.2,2301.0,3.44692567]
[1725724902600,1.56147,2301.2,2301.0,3.44692567]
[1725724902798,0.43459,2301.1,2301.0,3.44692567]
[1725724903099,7.98799,2301.1,2301.0,0.21526223]
[1725724903399,0.43461,2301.0,2300.8,3.0]
[1725724903791,0.43461,2301.0,2300.8,3.21573835]
[1725724903994,3.6424,2301.1,2300.8,3.21573835]
[1725724904589,3.2078,2301.1,2300.8,3.21573835]
[1725724904800,3.2078,2301.1,2301.0,3.0]
[1725724905299,3.2078,2301.1,2301.0,3.43461]
[1725724905498,3.2078,2301.1,2301.0,3.65460878]
[1725724907903,1.1269,2301.2,2301.0,3.65460878]
[1725724908306,1.1269,2301.2,2301.0,3.88743571]
[1725724908693,4.3347,2301.2,2301.0,3.21999878]
[1725724909503,4.3347,2301.2,2301.0,3.65460878]
[1725724911213,4.3347,2301.2,2301.0,3.65459878]
[1725724911701,4.3347,2301.2,2301.1,0.43459]
[1725724911898,1.1269,2301.2,2301.1,0.43459]
[1725724912102,1.1269,2301.2,2301.0,3.65459878]
[1725724912814,4.3347,2301.2,2301.0,3.65459878]
[1725724913720,4.3347,2301.2,2301.0,3.21999878]
[1725724915012,4.3347,2301.2,2301.0,0.21999878]
[1725724915202,4.3347,2301.2,2300.9,0.43462]
[1725724915600,4.3347,2301.2,2300.9,0.65599646]
[1725724915813,4.3347,2301.2,2300.9,0.22137646]